[Event "*** Titled Tuesday Blitz"]
[Site "Chess.com"]
[Date "2018.05.01"]
[Round "8"]
[White "tomozupan"]
[Black "2Tilted"]
[Result "1/2-1/2"]
[WhiteElo "2153"]
[BlackElo "2292"]
[TimeControl "180+2"]
[EndTime "14:49:11 PDT"]
[Termination "Game drawn by repetition"]

1. d4 {[%clk 0:03:01.9]} 1... Nf6 {[%clk 0:03:00.3]} 2. Bg5 {[%clk 0:03:01.2]}
2... Ne4 {[%clk 0:02:53]} 3. Bf4 {[%clk 0:03:01.7]} 3... c5 {[%clk 0:02:54.2]}
4. f3 {[%clk 0:02:59.5]} 4... Qa5+ {[%clk 0:02:53.7]} 5. c3 {[%clk 0:02:59.5]}
5... Nf6 {[%clk 0:02:53.8]} 6. d5 {[%clk 0:02:56.5]} 6... d6 {[%clk 0:02:47]} 7.
e4 {[%clk 0:02:56.1]} 7... Nbd7 {[%clk 0:02:43.8]} 8. Na3 {[%clk 0:02:35.3]}
8... g6 {[%clk 0:02:31.8]} 9. Qd2 {[%clk 0:02:18.3]} 9... h6 {[%clk 0:02:11.3]}
10. Nc4 {[%clk 0:02:13.1]} 10... Qc7 {[%clk 0:02:09.4]} 11. a4 {[%clk
0:02:13.6]} 11... a6 {[%clk 0:02:04.3]} 12. Bd3 {[%clk 0:02:09.2]} 12... b5
{[%clk 0:02:03.7]} 13. axb5 {[%clk 0:02:06]} 13... Bg7 {[%clk 0:02:01.9]} 14.
bxa6 {[%clk 0:01:19.3]} 14... g5 {[%clk 0:01:54.6]} 15. Bg3 {[%clk 0:01:10.3]}
15... Nh5 {[%clk 0:01:54.5]} 16. Ne2 {[%clk 0:01:03.7]} 16... Nxg3 {[%clk
0:01:54.4]} 17. Nxg3 {[%clk 0:01:04.2]} 17... Ne5 {[%clk 0:01:47.2]} 18. Nxe5
{[%clk 0:00:55.4]} 18... Bxe5 {[%clk 0:01:49.1]} 19. O-O {[%clk 0:00:55.7]}
19... c4 {[%clk 0:01:49.2]} 20. Bc2 {[%clk 0:00:50.3]} 20... Rxa6 {[%clk
0:01:24.1]} 21. Rxa6 {[%clk 0:00:47.6]} 21... Bxa6 {[%clk 0:01:26]} 22. Ba4+
{[%clk 0:00:46.3]} 22... Kf8 {[%clk 0:01:25.3]} 23. Nf5 {[%clk 0:00:47.2]} 23...
e6 {[%clk 0:01:20.9]} 24. dxe6 {[%clk 0:00:45.5]} 24... fxe6 {[%clk 0:01:22.8]}
25. Nd4 {[%clk 0:00:44.7]} 25... Bc8 {[%clk 0:01:20.5]} 26. f4 {[%clk
0:00:36.5]} 26... gxf4 {[%clk 0:01:16.8]} 27. Rxf4+ {[%clk 0:00:36.6]} 27...
Bxf4 {[%clk 0:01:17.8]} 28. Qxf4+ {[%clk 0:00:36.8]} 28... Qf7 {[%clk
0:01:19.4]} 29. Qxd6+ {[%clk 0:00:36.4]} 29... Kg7 {[%clk 0:01:19.4]} 30. Qe5+
{[%clk 0:00:30.9]} 30... Qf6 {[%clk 0:01:19]} 31. Qc7+ {[%clk 0:00:31.8]} 31...
Qf7 {[%clk 0:01:16.2]} 32. Qxc4 {[%clk 0:00:32.6]} 32... Rf8 {[%clk 0:01:13.2]}
33. Nf3 {[%clk 0:00:33]} 33... Rd8 {[%clk 0:01:03.6]} 34. h3 {[%clk 0:00:28]}
34... Qf4 {[%clk 0:00:59]} 35. b4 {[%clk 0:00:24.6]} 35... Bb7 {[%clk
0:00:48.4]} 36. Qxe6 {[%clk 0:00:21]} 36... Qc1+ {[%clk 0:00:47.6]} 37. Kh2
{[%clk 0:00:21.5]} 37... Qf4+ {[%clk 0:00:48.7]} 38. Kh1 {[%clk 0:00:22.8]}
38... Qc1+ {[%clk 0:00:49]} 39. Kh2 {[%clk 0:00:24.1]} 39... Qf4+ {[%clk
0:00:50.1]} 40. Kh1 {[%clk 0:00:25.2]} 40... Qc1+ {[%clk 0:00:51.3]} 41. Kh2
{[%clk 0:00:21.5]} 41... Qf4+ {[%clk 0:00:52.1]} 1/2-1/2

[Event "*** Titled Tuesday Blitz"]
[Site "Chess.com"]
[Date "2018.05.01"]
[Round "8"]
[White "LuisFSiles"]
[Black "DishonorOnYourCow"]
[Result "0-1"]
[WhiteElo "2245"]
[BlackElo "2320"]
[TimeControl "180+2"]
[EndTime "14:49:12 PDT"]
[Termination "DishonorOnYourCow won by resignation"]

1. e4 {[%clk 0:03:01.9]} 1... c5 {[%clk 0:02:57.3]} 2. Nf3 {[%clk 0:03:00.4]}
2... d6 {[%clk 0:02:58.2]} 3. d4 {[%clk 0:03:00.6]} 3... cxd4 {[%clk 0:02:59.2]}
4. Qxd4 {[%clk 0:03:01.3]} 4... a6 {[%clk 0:02:59.2]} 5. c4 {[%clk 0:02:58.7]}
5... Nc6 {[%clk 0:02:59.7]} 6. Qd2 {[%clk 0:02:59.1]} 6... g6 {[%clk 0:02:58.9]}
7. b3 {[%clk 0:02:57.9]} 7... Bh6 {[%clk 0:02:57.8]} 8. Qb2 {[%clk 0:02:58.5]}
8... e5 {[%clk 0:02:53.7]} 9. Bxh6 {[%clk 0:02:55.8]} 9... Nxh6 {[%clk
0:02:54.2]} 10. Nc3 {[%clk 0:02:56.2]} 10... O-O {[%clk 0:02:53.8]} 11. Be2
{[%clk 0:02:56.3]} 11... f5 {[%clk 0:02:54]} 12. O-O {[%clk 0:02:55.8]} 12...
fxe4 {[%clk 0:02:42.6]} 13. Nxe4 {[%clk 0:02:54.2]} 13... Bf5 {[%clk 0:02:40.4]}
14. Nc3 {[%clk 0:02:46]} 14... Bg4 {[%clk 0:02:39.8]} 15. h3 {[%clk 0:02:32.3]}
15... Bxf3 {[%clk 0:02:28.2]} 16. Bxf3 {[%clk 0:02:34.2]} 16... Nf5 {[%clk
0:02:29.4]} 17. Bd5+ {[%clk 0:02:26.4]} 17... Kg7 {[%clk 0:02:26.3]} 18. Rad1
{[%clk 0:02:17.9]} 18... Nfd4 {[%clk 0:02:25.5]} 19. Ne2 {[%clk 0:01:55.5]}
19... Nxe2+ {[%clk 0:02:05.2]} 20. Qxe2 {[%clk 0:01:54.6]} 20... Nd4 {[%clk
0:02:04.4]} 21. Qe4 {[%clk 0:01:52.6]} 21... Rf4 {[%clk 0:01:55.6]} 22. Qe3
{[%clk 0:01:45.2]} 22... Qc7 {[%clk 0:01:50.3]} 23. g3 {[%clk 0:01:44.6]} 23...
Rf6 {[%clk 0:01:49.7]} 24. f4 {[%clk 0:01:44.6]} 24... Qc5 {[%clk 0:01:36.4]}
25. Kg2 {[%clk 0:01:38.4]} 25... Nc2 {[%clk 0:01:30.5]} 26. Qxc5 {[%clk
0:01:33.6]} 26... dxc5 {[%clk 0:01:31.6]} 27. fxe5 {[%clk 0:00:56.6]} 27... Ne3+
{[%clk 0:01:22.5]} 28. Kg1 {[%clk 0:00:57.4]} 28... Rxf1+ {[%clk 0:01:22.3]} 29.
Rxf1 {[%clk 0:00:59.3]} 29... Nxf1 {[%clk 0:01:23.5]} 30. Kxf1 {[%clk
0:01:00.9]} 30... Rb8 {[%clk 0:01:24.2]} 31. a4 {[%clk 0:00:54.8]} 31... b5
{[%clk 0:01:24.1]} 32. cxb5 {[%clk 0:00:54.9]} 32... axb5 {[%clk 0:01:24.7]} 33.
a5 {[%clk 0:00:56.3]} 33... Rd8 {[%clk 0:01:24.2]} 34. Bb7 {[%clk 0:00:45.4]}
34... Rd1+ {[%clk 0:01:19.9]} 35. Ke2 {[%clk 0:00:45.6]} 35... Ra1 {[%clk
0:01:21.2]} 36. a6 {[%clk 0:00:41.3]} 36... Kf7 {[%clk 0:01:19.9]} 37. Kd3
{[%clk 0:00:41]} 37... Ke6 {[%clk 0:01:19.8]} 38. Ke4 {[%clk 0:00:41.9]} 38...
Ra3 {[%clk 0:01:01.3]} 39. Bc8+ {[%clk 0:00:36]} 39... Ke7 {[%clk 0:01:01.3]}
40. Bb7 {[%clk 0:00:37.3]} 40... c4 {[%clk 0:00:59.6]} 41. bxc4 {[%clk 0:00:33]}
41... bxc4 {[%clk 0:01:01.1]} 42. Kd4 {[%clk 0:00:31.2]} 42... c3 {[%clk
0:01:02]} 43. Kd3 {[%clk 0:00:32.5]} 43... Ke6 {[%clk 0:01:01.8]} 44. Bc8+
{[%clk 0:00:26.2]} 44... Kxe5 {[%clk 0:01:02.5]} 45. a7 {[%clk 0:00:26.7]} 45...
Rxa7 {[%clk 0:01:03]} 46. Kxc3 {[%clk 0:00:28.1]} 46... Rc7+ {[%clk 0:01:04]}
0-1

[Event "*** Titled Tuesday Blitz"]
[Site "Chess.com"]
[Date "2018.05.01"]
[Round "8"]
[White "EmreDedebas"]
[Black "GameOverBro"]
[Result "0-1"]
[WhiteElo "2364"]
[BlackElo "2419"]
[TimeControl "180+2"]
[EndTime "14:49:33 PDT"]
[Termination "GameOverBro won by resignation"]

1. c4 {[%clk 0:03:01.9]} 1... Nf6 {[%clk 0:02:54.8]} 2. Nc3 {[%clk 0:03:02.9]}
2... d6 {[%clk 0:02:53.4]} 3. Nf3 {[%clk 0:03:00.2]} 3... e5 {[%clk 0:02:53.6]}
4. g3 {[%clk 0:03:02.1]} 4... c6 {[%clk 0:02:53.9]} 5. Bg2 {[%clk 0:03:02.9]}
5... Be7 {[%clk 0:02:53]} 6. O-O {[%clk 0:03:04]} 6... O-O {[%clk 0:02:54.1]} 7.
d3 {[%clk 0:03:02]} 7... a5 {[%clk 0:02:53.4]} 8. a3 {[%clk 0:03:01.5]} 8... Na6
{[%clk 0:02:54.5]} 9. Rb1 {[%clk 0:03:01.6]} 9... Qc7 {[%clk 0:02:42.6]} 10. b4
{[%clk 0:02:52.2]} 10... axb4 {[%clk 0:02:37.2]} 11. axb4 {[%clk 0:02:53.9]}
11... h6 {[%clk 0:02:25.9]} 12. Nd2 {[%clk 0:02:47.3]} 12... Be6 {[%clk
0:02:23.2]} 13. Ba3 {[%clk 0:02:24.5]} 13... d5 {[%clk 0:02:13.5]} 14. cxd5
{[%clk 0:02:15.7]} 14... cxd5 {[%clk 0:02:11.8]} 15. Na4 {[%clk 0:02:10.2]}
15... b6 {[%clk 0:02:00.3]} 16. Rc1 {[%clk 0:02:05.4]} 16... Qa7 {[%clk
0:01:57.8]} 17. Ra1 {[%clk 0:01:52.3]} 17... Qb8 {[%clk 0:01:45.2]} 18. Qb1
{[%clk 0:01:44.7]} 18... Rc8 {[%clk 0:01:44]} 19. Qb2 {[%clk 0:01:39.7]} 19...
Bd6 {[%clk 0:01:37.7]} 20. Nc3 {[%clk 0:01:33.4]} 20... b5 {[%clk 0:01:30.4]}
21. Rfc1 {[%clk 0:00:44.3]} 21... Qb6 {[%clk 0:01:28.8]} 22. e4 {[%clk
0:00:37.1]} 22... d4 {[%clk 0:01:21.5]} 23. Nd5 {[%clk 0:00:35.7]} 23... Nxd5
{[%clk 0:01:07]} 24. exd5 {[%clk 0:00:37.4]} 24... Bf5 {[%clk 0:01:08.2]} 25.
Ne4 {[%clk 0:00:38]} 25... Bxe4 {[%clk 0:01:08.9]} 26. Bxe4 {[%clk 0:00:39.9]}
26... g6 {[%clk 0:01:05]} 27. Rc6 {[%clk 0:00:34.1]} 27... Rxc6 {[%clk 0:01:02]}
28. dxc6 {[%clk 0:00:36]} 28... Nxb4 {[%clk 0:00:57.8]} 29. Rc1 {[%clk
0:00:32.2]} 29... Nxd3 {[%clk 0:00:45.7]} 30. c7 {[%clk 0:00:25]} 30... Nxb2
{[%clk 0:00:29.9]} 31. Bxa8 {[%clk 0:00:06.4]} 31... Bxc7 {[%clk 0:00:30.6]} 32.
Bxb2 {[%clk 0:00:07.8]} 32... e4 {[%clk 0:00:23.5]} 33. Bxe4 {[%clk 0:00:08.9]}
33... Be5 {[%clk 0:00:20.7]} 34. Rc6 {[%clk 0:00:09.6]} 34... Qa5 {[%clk
0:00:21.1]} 35. Bc1 {[%clk 0:00:08.1]} 35... Qe1+ {[%clk 0:00:21.8]} 0-1

[Event "*** Titled Tuesday Blitz"]
[Site "Chess.com"]
[Date "2018.05.01"]
[Round "8"]
[White "Perecke"]
[Black "MasterLeif"]
[Result "1-0"]
[WhiteElo "1959"]
[BlackElo "2366"]
[TimeControl "180+2"]
[EndTime "14:49:39 PDT"]
[Termination "Perecke won by checkmate"]

1. e4 {[%clk 0:03:01.6]} 1... Nf6 {[%clk 0:02:58]} 2. e5 {[%clk 0:02:30.4]} 2...
Nd5 {[%clk 0:02:59.1]} 3. d4 {[%clk 0:02:30.2]} 3... d6 {[%clk 0:03:00.4]} 4. c4
{[%clk 0:02:31.3]} 4... Nb6 {[%clk 0:03:01.7]} 5. f4 {[%clk 0:02:32.4]} 5... Bf5
{[%clk 0:02:48.7]} 6. Nf3 {[%clk 0:02:31.6]} 6... e6 {[%clk 0:02:40.8]} 7. Be3
{[%clk 0:02:28.6]} 7... Nc6 {[%clk 0:02:41.7]} 8. Be2 {[%clk 0:02:25.3]} 8...
dxe5 {[%clk 0:02:40.6]} 9. fxe5 {[%clk 0:02:26.8]} 9... Bb4+ {[%clk 0:02:01.1]}
10. Nc3 {[%clk 0:02:24.5]} 10... O-O {[%clk 0:01:58.1]} 11. O-O {[%clk
0:02:20.1]} 11... Na5 {[%clk 0:01:42.3]} 12. c5 {[%clk 0:02:11.9]} 12... Nd5
{[%clk 0:01:36.5]} 13. Nxd5 {[%clk 0:02:11.2]} 13... Qxd5 {[%clk 0:01:37.4]} 14.
a3 {[%clk 0:02:06.3]} 14... Qe4 {[%clk 0:01:36.1]} 15. Bf2 {[%clk 0:02:01.2]}
15... Bxc5 {[%clk 0:01:23.2]} 16. dxc5 {[%clk 0:02:00]} 16... Rad8 {[%clk
0:01:24.7]} 17. Qe1 {[%clk 0:01:55.3]} 17... Nb3 {[%clk 0:01:18.4]} 18. Rd1
{[%clk 0:01:51.9]} 18... Qc2 {[%clk 0:01:19.3]} 19. Nd4 {[%clk 0:01:24.7]} 19...
Qxb2 {[%clk 0:01:01.6]} 20. Nxb3 {[%clk 0:01:02.7]} 20... Qxb3 {[%clk
0:01:01.8]} 21. Qb4 {[%clk 0:01:01.1]} 21... Qc2 {[%clk 0:00:51]} 22. Bf3 {[%clk
0:00:54.9]} 22... b6 {[%clk 0:00:44.8]} 23. cxb6 {[%clk 0:00:53.8]} 23... cxb6
{[%clk 0:00:43.1]} 24. Qe7 {[%clk 0:00:39.3]} 24... Rxd1 {[%clk 0:00:20]} 25.
Rxd1 {[%clk 0:00:39.1]} 25... h6 {[%clk 0:00:20.1]} 26. Bh4 {[%clk 0:00:33.8]}
26... Be4 {[%clk 0:00:18.4]} 27. Qxf8+ {[%clk 0:00:34.6]} 27... Kh7 {[%clk
0:00:19.1]} 28. Qxf7 {[%clk 0:00:33.5]} 28... Qc5+ {[%clk 0:00:11.5]} 29. Bf2
{[%clk 0:00:32.7]} 29... Qc2 {[%clk 0:00:11.3]} 30. Bxe4+ {[%clk 0:00:32.3]}
30... Qxe4 {[%clk 0:00:13.2]} 31. Qxe6 {[%clk 0:00:32.2]} 31... Qc2 {[%clk
0:00:13.7]} 32. Qd5 {[%clk 0:00:32.7]} 32... Qg6 {[%clk 0:00:10.2]} 33. Qd3
{[%clk 0:00:32.8]} 33... h5 {[%clk 0:00:10.7]} 34. e6 {[%clk 0:00:32.4]} 34...
Kh6 {[%clk 0:00:11.8]} 35. Qxg6+ {[%clk 0:00:32.4]} 35... Kxg6 {[%clk
0:00:13.7]} 36. e7 {[%clk 0:00:34.3]} 36... Kg5 {[%clk 0:00:14.7]} 37. e8=Q
{[%clk 0:00:34.3]} 37... Kh6 {[%clk 0:00:16.6]} 38. Qh8+ {[%clk 0:00:34.8]}
38... Kg6 {[%clk 0:00:18.5]} 39. Rd6+ {[%clk 0:00:35.8]} 39... Kf7 {[%clk
0:00:20.4]} 40. Rd7+ {[%clk 0:00:35.9]} 40... Ke6 {[%clk 0:00:21.7]} 41. Qe8+
{[%clk 0:00:37.2]} 41... Kf5 {[%clk 0:00:23.6]} 42. Rf7+ {[%clk 0:00:38.3]}
42... Kg6 {[%clk 0:00:25.5]} 43. Qe6+ {[%clk 0:00:39]} 43... Kh7 {[%clk
0:00:26.1]} 44. Qf5+ {[%clk 0:00:40.3]} 44... Kh6 {[%clk 0:00:27.1]} 45. Be3+
{[%clk 0:00:41.4]} 45... g5 {[%clk 0:00:28.9]} 46. Bxg5# {[%clk 0:00:42.5]} 1-0

[Event "*** Titled Tuesday Blitz"]
[Site "Chess.com"]
[Date "2018.05.01"]
[Round "8"]
[White "ENEASZ"]
[Black "rubhani"]
[Result "1-0"]
[WhiteElo "2465"]
[BlackElo "2428"]
[TimeControl "180+2"]
[EndTime "14:49:42 PDT"]
[Termination "ENEASZ won on time"]

1. e4 {[%clk 0:03:01.9]} 1... c6 {[%clk 0:02:59.3]} 2. d3 {[%clk 0:03:02.7]}
2... d5 {[%clk 0:03:00.1]} 3. Nd2 {[%clk 0:03:04.6]} 3... e5 {[%clk 0:03:00.2]}
4. Ngf3 {[%clk 0:03:05.3]} 4... Bd6 {[%clk 0:03:01.2]} 5. d4 {[%clk 0:03:06.1]}
5... exd4 {[%clk 0:02:57]} 6. exd5 {[%clk 0:03:06.6]} 6... cxd5 {[%clk
0:02:58.3]} 7. Bb5+ {[%clk 0:03:04.8]} 7... Nc6 {[%clk 0:02:59.4]} 8. Nxd4
{[%clk 0:03:04.8]} 8... Bd7 {[%clk 0:03:00.2]} 9. N2f3 {[%clk 0:03:01.6]} 9...
Nge7 {[%clk 0:03:00.5]} 10. O-O {[%clk 0:02:59.9]} 10... O-O {[%clk 0:03:01.2]}
11. h3 {[%clk 0:02:58.4]} 11... Rc8 {[%clk 0:03:00.6]} 12. c3 {[%clk 0:02:58.9]}
12... Qb6 {[%clk 0:02:43.6]} 13. Re1 {[%clk 0:02:51.4]} 13... Rfd8 {[%clk
0:02:18.4]} 14. Ba4 {[%clk 0:02:49.3]} 14... Bc5 {[%clk 0:02:05.9]} 15. Bg5
{[%clk 0:02:29.6]} 15... f6 {[%clk 0:02:01.5]} 16. Be3 {[%clk 0:01:52.1]} 16...
Ne5 {[%clk 0:01:35.7]} 17. Bxd7 {[%clk 0:01:48]} 17... Rxd7 {[%clk 0:01:36.6]}
18. Nxe5 {[%clk 0:01:06.4]} 18... fxe5 {[%clk 0:01:37.1]} 19. Qg4 {[%clk
0:01:03.9]} 19... Rd6 {[%clk 0:00:28.5]} 20. b4 {[%clk 0:00:36.1]} 20... Bxd4
{[%clk 0:00:27.5]} 21. cxd4 {[%clk 0:00:36.9]} 21... e4 {[%clk 0:00:23.2]} 22.
Bf4 {[%clk 0:00:19.3]} 22... Rdd8 {[%clk 0:00:20]} 23. Be5 {[%clk 0:00:19.3]}
23... Ng6 {[%clk 0:00:20.9]} 24. Rac1 {[%clk 0:00:20]} 24... Rxc1 {[%clk
0:00:21]} 25. Rxc1 {[%clk 0:00:21.9]} 25... Nxe5 {[%clk 0:00:17.6]} 26. dxe5
{[%clk 0:00:22.3]} 26... Re8 {[%clk 0:00:18.3]} 27. Rc8 {[%clk 0:00:21.2]} 27...
Rxc8 {[%clk 0:00:06.9]} 28. Qxc8+ {[%clk 0:00:23.1]} 28... Kf7 {[%clk
0:00:08.2]} 29. Qd7+ {[%clk 0:00:24.6]} 29... Kg6 {[%clk 0:00:05.8]} 30. e6
{[%clk 0:00:26]} 30... e3 {[%clk 0:00:07]} 31. e7 {[%clk 0:00:23.2]} 31... exf2+
{[%clk 0:00:06.5]} 32. Kf1 {[%clk 0:00:24.4]} 32... Qa6+ {[%clk 0:00:07]} 33. b5
{[%clk 0:00:21.5]} 1-0

[Event "*** Titled Tuesday Blitz"]
[Site "Chess.com"]
[Date "2018.05.01"]
[Round "8"]
[White "Manukyan_Artak"]
[Black "PchelkinVK"]
[Result "1-0"]
[WhiteElo "2372"]
[BlackElo "2406"]
[TimeControl "180+2"]
[EndTime "14:49:43 PDT"]
[Termination "Manukyan_Artak won on time"]

1. e4 {[%clk 0:03:01.9]} 1... e6 {[%clk 0:03:00.9]} 2. d4 {[%clk 0:03:02.6]}
2... d5 {[%clk 0:03:02]} 3. e5 {[%clk 0:03:03.9]} 3... c5 {[%clk 0:03:02.4]} 4.
c3 {[%clk 0:03:04.6]} 4... Nc6 {[%clk 0:03:03.5]} 5. Nf3 {[%clk 0:03:05.4]} 5...
Bd7 {[%clk 0:03:04.6]} 6. a3 {[%clk 0:03:05.5]} 6... f6 {[%clk 0:03:05.4]} 7. b4
{[%clk 0:02:58.5]} 7... c4 {[%clk 0:03:05.9]} 8. g3 {[%clk 0:02:50.8]} 8... Qc7
{[%clk 0:02:57.3]} 9. exf6 {[%clk 0:02:46.8]} 9... Nxf6 {[%clk 0:02:56.1]} 10.
Bf4 {[%clk 0:02:46.4]} 10... Bd6 {[%clk 0:02:55.3]} 11. Bxd6 {[%clk 0:02:47]}
11... Qxd6 {[%clk 0:02:57.2]} 12. Bg2 {[%clk 0:02:45.7]} 12... O-O {[%clk
0:02:55.5]} 13. O-O {[%clk 0:02:45.1]} 13... Ne4 {[%clk 0:02:44.5]} 14. Nfd2
{[%clk 0:02:44.4]} 14... Nf6 {[%clk 0:02:37.4]} 15. Nf3 {[%clk 0:02:32]} 15...
Be8 {[%clk 0:02:35.5]} 16. Nbd2 {[%clk 0:02:22.2]} 16... Bg6 {[%clk 0:02:23.7]}
17. b5 {[%clk 0:02:13.9]} 17... Na5 {[%clk 0:01:54.1]} 18. Ne5 {[%clk
0:02:13.5]} 18... Bh5 {[%clk 0:01:18.2]} 19. Qe1 {[%clk 0:02:05.1]} 19... a6
{[%clk 0:00:48.4]} 20. a4 {[%clk 0:02:02.5]} 20... axb5 {[%clk 0:00:45.1]} 21.
axb5 {[%clk 0:02:03.4]} 21... Be8 {[%clk 0:00:45.8]} 22. Rb1 {[%clk 0:01:58.6]}
22... Qa3 {[%clk 0:00:39.8]} 23. Qc1 {[%clk 0:01:53.1]} 23... Qxc1 {[%clk
0:00:40.1]} 24. Rfxc1 {[%clk 0:01:53.4]} 24... Nd7 {[%clk 0:00:36.9]} 25. Ndf3
{[%clk 0:01:47.3]} 25... Nb3 {[%clk 0:00:32.6]} 26. Re1 {[%clk 0:01:48.3]} 26...
Nxe5 {[%clk 0:00:24.1]} 27. Rxe5 {[%clk 0:01:48.6]} 27... Bxb5 {[%clk
0:00:21.4]} 28. Rxe6 {[%clk 0:01:49.6]} 28... Ra2 {[%clk 0:00:22.6]} 29. Rf1
{[%clk 0:01:41.3]} 29... Rc2 {[%clk 0:00:20.8]} 30. Ne5 {[%clk 0:01:36.4]} 30...
Rxc3 {[%clk 0:00:16.9]} 31. Bxd5 {[%clk 0:01:36.8]} 31... Kh8 {[%clk 0:00:15.3]}
32. Nf7+ {[%clk 0:01:35.2]} 32... Rxf7 {[%clk 0:00:15.8]} 33. Rb6 {[%clk
0:01:33.1]} 33... Be8 {[%clk 0:00:16.2]} 34. Bxf7 {[%clk 0:01:31.3]} 34... Bxf7
{[%clk 0:00:18.1]} 35. Rxb7 {[%clk 0:01:33]} 35... Rf3 {[%clk 0:00:18.7]} 36.
Kg2 {[%clk 0:01:26.8]} 36... Rf6 {[%clk 0:00:19.3]} 37. Rb8+ {[%clk 0:01:25.3]}
37... Bg8 {[%clk 0:00:20.4]} 38. Re1 {[%clk 0:01:25.1]} 38... h6 {[%clk
0:00:18.1]} 39. Ree8 {[%clk 0:01:26]} 39... Nxd4 {[%clk 0:00:19.2]} 40. Rxg8+
{[%clk 0:01:26.8]} 40... Kh7 {[%clk 0:00:21.1]} 41. h4 {[%clk 0:01:26.2]} 41...
c3 {[%clk 0:00:20.6]} 42. h5 {[%clk 0:01:27.4]} 42... g5 {[%clk 0:00:14.6]} 43.
Rgd8 {[%clk 0:01:23.2]} 43... Ne6 {[%clk 0:00:07.5]} 44. Rd7+ {[%clk 0:01:22.9]}
44... Ng7 {[%clk 0:00:07.8]} 45. Rbb7 {[%clk 0:01:24.1]} 1-0

[Event "*** Titled Tuesday Blitz"]
[Site "Chess.com"]
[Date "2018.05.01"]
[Round "8"]
[White "Jospem"]
[Black "djano"]
[Result "1-0"]
[WhiteElo "2692"]
[BlackElo "2458"]
[TimeControl "180+2"]
[EndTime "14:50:05 PDT"]
[Termination "Jospem won on time"]

1. e4 {[%clk 0:03:01.8]} 1... c5 {[%clk 0:03:00]} 2. Nf3 {[%clk 0:02:57.8]} 2...
d6 {[%clk 0:03:00.3]} 3. d4 {[%clk 0:02:58.6]} 3... cxd4 {[%clk 0:03:02.2]} 4.
Nxd4 {[%clk 0:02:59.2]} 4... Nf6 {[%clk 0:03:03.6]} 5. Nc3 {[%clk 0:02:59.8]}
5... a6 {[%clk 0:03:04.7]} 6. f3 {[%clk 0:02:59.8]} 6... e5 {[%clk 0:02:59.5]}
7. Nb3 {[%clk 0:03:00.8]} 7... Be7 {[%clk 0:03:00.4]} 8. Be3 {[%clk 0:03:01.1]}
8... O-O {[%clk 0:02:57.5]} 9. Qd2 {[%clk 0:02:59.4]} 9... Be6 {[%clk
0:02:55.4]} 10. O-O-O {[%clk 0:02:59.8]} 10... b5 {[%clk 0:02:51.1]} 11. g4
{[%clk 0:02:57.9]} 11... Nc6 {[%clk 0:02:49.3]} 12. Kb1 {[%clk 0:02:50.1]} 12...
b4 {[%clk 0:02:12.7]} 13. Nd5 {[%clk 0:02:41.9]} 13... a5 {[%clk 0:02:09.5]} 14.
g5 {[%clk 0:02:26.4]} 14... Nd7 {[%clk 0:02:03.6]} 15. Nxe7+ {[%clk 0:02:22.3]}
15... Nxe7 {[%clk 0:02:01.9]} 16. Qxd6 {[%clk 0:02:11.7]} 16... Nc8 {[%clk
0:01:55.9]} 17. Qd2 {[%clk 0:01:53.5]} 17... Qc7 {[%clk 0:01:54.6]} 18. Bb5
{[%clk 0:01:44.7]} 18... a4 {[%clk 0:01:41.2]} 19. Nc1 {[%clk 0:01:38.6]} 19...
b3 {[%clk 0:01:09]} 20. cxb3 {[%clk 0:01:16.4]} 20... axb3 {[%clk 0:01:09.6]}
21. Nxb3 {[%clk 0:00:45.1]} 21... Rd8 {[%clk 0:00:55.1]} 22. Qc3 {[%clk
0:00:38.3]} 22... Qb8 {[%clk 0:00:44.8]} 23. a4 {[%clk 0:00:36.4]} 23... Ncb6
{[%clk 0:00:42.2]} 24. Bxb6 {[%clk 0:00:20.2]} 24... Nxb6 {[%clk 0:00:39.5]} 25.
Nc5 {[%clk 0:00:20.2]} 25... Rc8 {[%clk 0:00:31.1]} 26. Qb4 {[%clk 0:00:17.1]}
26... Nxa4 {[%clk 0:00:32.5]} 27. Nxa4 {[%clk 0:00:16.1]} 27... Bc4 {[%clk
0:00:23.2]} 28. Nc3 {[%clk 0:00:13.2]} 28... Be6 {[%clk 0:00:11.5]} 29. Rhe1
{[%clk 0:00:05.6]} 29... Qa7 {[%clk 0:00:12.5]} 30. Re2 {[%clk 0:00:04.3]} 30...
Rab8 {[%clk 0:00:07.8]} 31. Red2 {[%clk 0:00:04.8]} 31... g6 {[%clk 0:00:08]}
32. Qa4 {[%clk 0:00:05.7]} 32... Qe3 {[%clk 0:00:08.6]} 33. Qa6 {[%clk
0:00:04.9]} 33... Rxc3 {[%clk 0:00:07.6]} 34. bxc3 {[%clk 0:00:05.3]} 34... Qxc3
{[%clk 0:00:09.5]} 35. Rb2 {[%clk 0:00:05.5]} 35... Bb3 {[%clk 0:00:09]} 36. Qd6
{[%clk 0:00:05.9]} 36... Rc8 {[%clk 0:00:05.6]} 37. Qd2 {[%clk 0:00:05.3]} 37...
Bxd1 {[%clk 0:00:02.6]} 38. Qxd1 {[%clk 0:00:06.7]} 1-0